Workbook

Sheet 更新
A1: 附件1：
A2: 乌当区2023年面向社会招聘中小学“劳务派遣”教师总成绩排名及进入体检人员名单
A3: 序号 | B3: 姓名 | C3: 准考证号 | D3: 考场号 | E3: 座位号 | F3: 考点 | G3: 报考学段 | H3: 报考学科 | I3: 报考岗位 | J3: 笔试成绩 | K3: 笔试成绩折算百分制成绩 | L3: 笔试成绩*40% | M3: 面试成绩 | N3: 面试（试教）成绩*60% | O3: 总成绩 | P3: 是否进入体检 | Q3: 备注
A4: 1 | B4: 刘贵兰 | C4: 2023086114 | D4: 61 | E4: 14 | F4: 乌当中学 | G4: 初中 | H4: 道德与法治 | I4: 初中道德与法治 | J4: 112.26 | K4: =J4/1.5 -> 74.84 | L4: =K4*0.4 -> 29.94 | M4: 85.00 | N4: =M4*0.6 -> 51.00 | O4: =L4+N4 -> 80.94 | P4: 是 | Q4: 1
A5: 2 | B5: 刘星琪 | C5: 2023086026 | D5: 60 | E5: 26 | F5: 乌当中学 | G5: 初中 | H5: 道德与法治 | I5: 初中道德与法治 | J5: 112.8 | K5: 75.20 | L5: =K5*0.4 -> 30.08 | M5: 84.33 | N5: 50.60 | O5: 80.68 | P5: 是 | Q5: 2
A6: 3 | B6: 张丽娟 | C6: 2023086129 | D6: 61 | E6: 29 | F6: 乌当中学 | G6: 初中 | H6: 道德与法治 | I6: 初中道德与法治 | J6: 115.79 | K6: 77.19 | L6: =K6*0.4 -> 30.88 | M6: 80.67 | N6: 48.40 | O6: 79.28 | P6: 是 | Q6: 3
A7: 4 | B7: 张保玉 | C7: 2023086103 | D7: 61 | E7: 03 | F7: 乌当中学 | G7: 初中 | H7: 道德与法治 | I7: 初中道德与法治 | J7: 114.05 | K7: 76.03 | L7: 30.41 | M7: 80.33 | N7: 48.20 | O7: 78.61 | P7: 是 | Q7: 4
A8: 5 | B8: 张坚 | C8: 2023086123 | D8: 61 | E8: 23 | F8: 乌当中学 | G8: 初中 | H8: 道德与法治 | I8: 初中道德与法治 | J8: 106.68 | K8: 71.12 | L8: 28.45 | M8: 81.80 | N8: 49.08 | O8: 77.53 | P8: 是 | Q8: 5
A9: 6 | B9: 陈定美 | C9: 2023086302 | D9: 63 | E9: 02 | F9: 乌当中学 | G9: 初中 | H9: 道德与法治 | I9: 初中道德与法治 | J9: 115.29 | K9: 76.86 | L9: 30.74 | M9: 77.00 | N9: 46.20 | O9: 76.94 | P9: 是 | Q9: 6
A10: 7 | B10: 杨玲 | C10: 2023086027 | D10: 60 | E10: 27 | F10: 乌当中学 | G10: 初中 | H10: 道德与法治 | I10: 初中道德与法治 | J10: 109.29 | K10: 72.86 | L10: 29.14 | M10: 79.33 | N10: 47.60 | O10: 76.74 | P10: 是 | Q10: 7
A11: 8 | B11: 刘国美 | C11: 2023086127 | D11: 61 | E11: 27 | F11: 乌当中学 | G11: 初中 | H11: 道德与法治 | I11: 初中道德与法治 | J11: 108.47 | K11: 72.31 | L11: 28.93 | M11: 79.67 | N11: 47.80 | O11: 76.73
A12: 9 | B12: 谢欢 | C12: 2023086201 | D12: 62 | E12: 01 | F12: 乌当中学 | G12: 初中 | H12: 道德与法治 | I12: 初中道德与法治 | J12: 107.82 | K12: 71.88 | L12: 28.75 | M12: 79.83 | N12: 47.90 | O12: 76.65
A13: 10 | B13: 石彩洪 | C13: 2023086024 | D13: 60 | E13: 24 | F13: 乌当中学 | G13: 初中 | H13: 道德与法治 | I13: 初中道德与法治 | J13: 115.56 | K13: 77.04 | L13: 30.82 | M13: 76.00 | N13: 45.60 | O13: 76.42
A14: 11 | B14: 王琴 | C14: 2023086125 | D14: 61 | E14: 25 | F14: 乌当中学 | G14: 初中 | H14: 道德与法治 | I14: 初中道德与法治 | J14: 108.53 | K14: 72.35 | L14: 28.94 | M14: 79.00 | N14: 47.40 | O14: 76.34
A15: 12 | B15: 向小丽 | C15: 2023086204 | D15: 62 | E15: 04 | F15: 乌当中学 | G15: 初中 | H15: 道德与法治 | I15: 初中道德与法治 | J15: 113.29 | K15: 75.53 | L15: 30.21 | M15: 76.67 | N15: 46.00 | O15: 76.21
A16: 13 | B16: 罗丽 | C16: 2023086203 | D16: 62 | E16: 03 | F16: 乌当中学 | G16: 初中 | H16: 道德与法治 | I16: 初中道德与法治 | J16: 112.16 | K16: 74.77 | L16: 29.91 | M16: 76.00 | N16: 45.60 | O16: 75.51
A17: 14 | B17: 邓瑶 | C17: 2023086108 | D17: 61 | E17: 08 | F17: 乌当中学 | G17: 初中 | H17: 道德与法治 | I17: 初中道德与法治 | J17: 107.04 | K17: 71.36 | L17: 28.54 | M17: 78.00 | N17: 46.80 | O17: 75.34
A18: 15 | B18: 张建 | C18: 2023086209 | D18: 62 | E18: 09 | F18: 乌当中学 | G18: 初中 | H18: 道德与法治 | I18: 初中道德与法治 | J18: 106.73 | K18: 71.15 | L18: 28.46 | M18: 78.00 | N18: 46.80 | O18: 75.26
A19: 16 | B19: 姜雪峰 | C19: 2023086110 | D19: 61 | E19: 10 | F19: 乌当中学 | G19: 初中 | H19: 道德与法治 | I19: 初中道德与法治 | J19: 107.54 | K19: 71.69 | L19: 28.68 | M19: 77.50 | N19: 46.50 | O19: 75.18
A20: 17 | B20: 谢颖 | C20: 2023086106 | D20: 61 | E20: 06 | F20: 乌当中学 | G20: 初中 | H20: 道德与法治 | I20: 初中道德与法治 | J20: 107.4 | K20: 71.60 | L20: 28.64 | M20: 77.33 | N20: 46.40 | O20: 75.04
A21: 18 | B21: 韩雪 | C21: 2023086208 | D21: 62 | E21: 08 | F21: 乌当中学 | G21: 初中 | H21: 道德与法治 | I21: 初中道德与法治 | J21: 107.27 | K21: 71.51 | L21: 28.61 | M21: 77.00 | N21: 46.20 | O21: 74.81
A22: 19 | B22: 周小佳 | C22: 2023086109 | D22: 61 | E22: 09 | F22: 乌当中学 | G22: 初中 | H22: 道德与法治 | I22: 初中道德与法治 | J22: 112.82 | K22: 75.21 | L22: 30.09 | M22: 缺考 | O22: 30.09
A23: 20 | B23: 肖从 | C23: 2023086225 | D23: 62 | E23: 25 | F23: 乌当中学 | G23: 初中 | H23: 道德与法治 | I23: 初中道德与法治 | J23: 108.4 | K23: 72.27 | L23: 28.91 | M23: 缺考 | O23: 28.91
A24: 21 | B24: 伍小红 | C24: 2023086218 | D24: 62 | E24: 18 | F24: 乌当中学 | G24: 初中 | H24: 道德与法治 | I24: 初中道德与法治 | J24: 107.44 | K24: 71.63 | L24: 28.65 | M24: 缺考 | O24: 28.65
A25: 22 | B25: 殷红 | C25: 2023080915 | D25: 09 | E25: 15 | F25: 乌当二中 | G25: 初中 | H25: 地理 | I25: 初中地理 | J25: 118.56 | K25: 79.04 | L25: 31.62 | M25: 81.67 | N25: =M25*0.6 -> 49.00 | O25: 80.62 | P25: 是 | Q25: 1
A26: 23 | B26: 沈福冲 | C26: 2023081009 | D26: 10 | E26: 09 | F26: 乌当二中 | G26: 初中 | H26: 地理 | I26: 初中地理 | J26: 111.79 | K26: 74.53 | L26: 29.81 | M26: 81.00 | N26: 48.60 | O26: 78.41 | P26: 是 | Q26: 2
A27: 24 | B27: 曾传鑫 | C27: 2023080912 | D27: 09 | E27: 12 | F27: 乌当二中 | G27: 初中 | H27: 地理 | I27: 初中地理 | J27: 110.14 | K27: 73.43 | L27: 29.37 | M27: 81.33 | N27: 48.80 | O27: 78.17 | P27: 是 | Q27: 3
A28: 25 | B28: 王志敏 | C28: 2023081019 | D28: 10 | E28: 19 | F28: 乌当二中 | G28: 初中 | H28: 地理 | I28: 初中地理 | J28: 117.54 | K28: 78.36 | L28: 31.34 | M28: 76.67 | N28: 46.00 | O28: 77.35 | P28: 是 | Q28: 4
A29: 26 | B29: 蒲秀清 | C29: 2023080908 | D29: 09 | E29: 08 | F29: 乌当二中 | G29: 初中 | H29: 地理 | I29: 初中地理 | J29: 106.74 | K29: 71.16 | L29: 28.46 | M29: 81.33 | N29: 48.80 | O29: 77.26 | P29: 是 | Q29: 5
A30: 27 | B30: 张会琴 | C30: 2023081025 | D30: 10 | E30: 25 | F30: 乌当二中 | G30: 初中 | H30: 地理 | I30: 初中地理 | J30: 109.72 | K30: 73.15 | L30: 29.26 | M30: 80.00 | N30: 48.00 | O30: 77.26
A31: 28 | B31: 王碧森 | C31: 2023080910 | D31: 09 | E31: 10 | F31: 乌当二中 | G31: 初中 | H31: 地理 | I31: 初中地理 | J31: 112.2 | K31: 74.80 | L31: 29.92 | M31: 78.33 | N31: 47.00 | O31: 76.92
A32: 29 | B32: 陈在 | C32: 2023080920 | D32: 09 | E32: 20 | F32: 乌当二中 | G32: 初中 | H32: 地理 | I32: 初中地理 | J32: 111.38 | K32: 74.25 | L32: 29.70 | M32: 76.00 | N32: 45.60 | O32: 75.30
A33: 30 | B33: 杨成春 | C33: 2023081021 | D33: 10 | E33: 21 | F33: 乌当二中 | G33: 初中 | H33: 地理 | I33: 初中地理 | J33: 107.37 | K33: 71.58 | L33: 28.63 | M33: 77.67 | N33: 46.60 | O33: 75.23
A34: 31 | B34: 饶宗飞 | C34: 2023080902 | D34: 09 | E34: 02 | F34: 乌当二中 | G34: 初中 | H34: 地理 | I34: 初中地理 | J34: 111.04 | K34: 74.03 | L34: 29.61 | M34: 76.00 | N34: 45.60 | O34: 75.21
A35: 32 | B35: 郭电雄 | C35: 2023081105 | D35: 11 | E35: 05 | F35: 乌当二中 | G35: 初中 | H35: 地理 | I35: 初中地理 | J35: 112.29 | K35: 74.86 | L35: 29.94 | M35: 75.33 | N35: 45.20 | O35: 75.14
A36: 33 | B36: 谭启慧 | C36: 2023081102 | D36: 11 | E36: 02 | F36: 乌当二中 | G36: 初中 | H36: 地理 | I36: 初中地理 | J36: 112.8 | K36: 75.20 | L36: 30.08 | M36: 缺考 | O36: 30.08
A37: 34 | B37: 李茹霞 | C37: 2023081013 | D37: 10 | E37: 13 | F37: 乌当二中 | G37: 初中 | H37: 地理 | I37: 初中地理 | J37: 108.22 | K37: 72.15 | L37: 28.86 | M37: 缺考 | O37: 28.86
A38: 35 | B38: 杨欢欢 | C38: 2023080903 | D38: 09 | E38: 03 | F38: 乌当二中 | G38: 初中 | H38: 地理 | I38: 初中地理 | J38: 106.87 | K38: 71.25 | L38: 28.50 | M38: 缺考 | O38: 28.50
A39: 36 | B39: 王琴凤 | C39: 2023080928 | D39: 09 | E39: 28 | F39: 乌当二中 | G39: 初中 | H39: 地理 | I39: 初中地理 | J39: 105.89 | K39: 70.59 | L39: 28.24 | M39: 缺考 | O39: 28.24
A40: 37 | B40: 王昌景 | C40: 2023084103 | D40: 41 | E40: 03 | F40: 乌当中学 | G40: 初中 | H40: 历史 | I40: 初中历史 | J40: 120.72 | K40: 80.48 | L40: 32.19 | M40: 81.00 | N40: =M40*0.6 -> 48.60 | O40: 80.79 | P40: 是 | Q40: 1
A41: 38 | B41: 卢秋雨 | C41: 2023084105 | D41: 41 | E41: 05 | F41: 乌当中学 | G41: 初中 | H41: 历史 | I41: 初中历史 | J41: 113.05 | K41: 75.37 | L41: 30.15 | M41: 83.00 | N41: 49.80 | O41: 79.95 | P41: 是 | Q41: 2
A42: 39 | B42: 谢双 | C42: 2023084029 | D42: 40 | E42: 29 | F42: 乌当中学 | G42: 初中 | H42: 历史 | I42: 初中历史 | J42: 110.54 | K42: 73.69 | L42: 29.48 | M42: 83.33 | N42: 50.00 | O42: 79.48 | P42: 是 | Q42: 3
A43: 40 | B43: 安焱山 | C43: 2023084022 | D43: 40 | E43: 22 | F43: 乌当中学 | G43: 初中 | H43: 历史 | I43: 初中历史 | J43: 115.69 | K43: 77.13 | L43: 30.85 | M43: 80.67 | N43: 48.40 | O43: 79.25 | P43: 是 | Q43: 4
A44: 41 | B44: 陈茜茜 | C44: 2023084024 | D44: 40 | E44: 24 | F44: 乌当中学 | G44: 初中 | H44: 历史 | I44: 初中历史 | J44: 115.88 | K44: 77.25 | L44: 30.90 | M44: 79.67 | N44: 47.80 | O44: 78.70 | P44: 是 | Q44: 5
A45: 42 | B45: 余车先 | C45: 2023084025 | D45: 40 | E45: 25 | F45: 乌当中学 | G45: 初中 | H45: 历史 | I45: 初中历史 | J45: 107.55 | K45: 71.70 | L45: 28.68 | M45: 82.67 | N45: 49.60 | O45: 78.28 | P45: 是 | Q45: 6
A46: 43 | B46: 钱丽 | C46: 2023084207 | D46: 42 | E46: 07 | F46: 乌当中学 | G46: 初中 | H46: 历史 | I46: 初中历史 | J46: 115.29 | K46: 76.86 | L46: 30.74 | M46: 78.33 | N46: 47.00 | O46: 77.74
A47: 44 | B47: 韩雪 | C47: 2023084126 | D47: 41 | E47: 26 | F47: 乌当中学 | G47: 初中 | H47: 历史 | I47: 初中历史 | J47: 108.19 | K47: 72.13 | L47: 28.85 | M47: 81.33 | N47: 48.80 | O47: 77.65
A48: 45 | B48: 伍宇羽 | C48: 2023084119 | D48: 41 | E48: 19 | F48: 乌当中学 | G48: 初中 | H48: 历史 | I48: 初中历史 | J48: 113.05 | K48: 75.37 | L48: 30.15 | M48: 78.00 | N48: 46.80 | O48: 76.95
A49: 46 | B49: 杨阳 | C49: 2023084208 | D49: 42 | E49: 08 | F49: 乌当中学 | G49: 初中 | H49: 历史 | I49: 初中历史 | J49: 108.02 | K49: 72.01 | L49: 28.81 | M49: 79.34 | N49: 47.60 | O49: 76.41
A50: 47 | B50: 张玉立 | C50: 2023084129 | D50: 41 | E50: 29 | F50: 乌当中学 | G50: 初中 | H50: 历史 | I50: 初中历史 | J50: 107.13 | K50: 71.42 | L50: 28.57 | M50: 78.33 | N50: 47.00 | O50: 75.57
A51: 48 | B51: 翟康 | C51: 2023084230 | D51: 42 | E51: 30 | F51: 乌当中学 | G51: 初中 | H51: 历史 | I51: 初中历史 | J51: 110.68 | K51: 73.79 | L51: 29.51 | M51: 76.67 | N51: 46.00 | O51: 75.52
A52: 49 | B52: 李永秀 | C52: 2023084104 | D52: 41 | E52: 04 | F52: 乌当中学 | G52: 初中 | H52: 历史 | I52: 初中历史 | J52: 116.71 | K52: 77.81 | L52: 31.12 | M52: 73.00 | N52: 43.80 | O52: 74.92
A53: 50 | B53: 田秋英 | C53: 2023084107 | D53: 41 | E53: 07 | F53: 乌当中学 | G53: 初中 | H53: 历史 | I53: 初中历史 | J53: 107.22 | K53: 71.48 | L53: 28.59 | M53: 76.33 | N53: 45.80 | O53: 74.39
A54: 51 | B54: 付爱玲 | C54: 2023084219 | D54: 42 | E54: 19 | F54: 乌当中学 | G54: 初中 | H54: 历史 | I54: 初中历史 | J54: 109.54 | K54: 73.03 | L54: 29.21 | M54: 73.33 | N54: 44.00 | O54: 73.21
A55: 52 | B55: 杨艳 | C55: 2023084111 | D55: 41 | E55: 11 | F55: 乌当中学 | G55: 初中 | H55: 历史 | I55: 初中历史 | J55: 115.56 | K55: 77.04 | L55: 30.82 | M55: 缺考 | O55: 30.82
A56: 53 | B56: 安玉青 | C56: 2023084211 | D56: 42 | E56: 11 | F56: 乌当中学 | G56: 初中 | H56: 历史 | I56: 初中历史 | J56: 108.45 | K56: 72.30 | L56: 28.92 | M56: 缺考 | O56: 28.92
A57: 54 | B57: 曾贤 | C57: 2023084206 | D57: 42 | E57: 06 | F57: 乌当中学 | G57: 初中 | H57: 历史 | I57: 初中历史 | J57: 106.62 | K57: 71.08 | L57: 28.43 | M57: 缺考 | O57: 28.43
A58: 55 | B58: 陈瑞 | C58: 2023082706 | D58: 27 | E58: 06 | F58: 乌当中学 | G58: 初中 | H58: 美术 | I58: 初中美术 | J58: 112.31 | K58: 74.87 | L58: 29.95 | M58: 80.63 | N58: =M58*0.6 -> 48.38 | O58: 78.33 | P58: 是 | Q58: 1
A59: 56 | B59: 杨飞艳 | C59: 2023082607 | D59: 26 | E59: 07 | F59: 乌当中学 | G59: 初中 | H59: 美术 | I59: 初中美术 | J59: 118.8 | K59: 79.20 | L59: 31.68 | M59: 77.67 | N59: 46.60 | O59: 78.28 | P59: 是 | Q59: 2
A60: 57 | B60: 张月圆 | C60: 2023082819 | D60: 28 | E60: 19 | F60: 乌当中学 | G60: 初中 | H60: 美术 | I60: 初中美术 | J60: 112.65 | K60: 75.10 | L60: 30.04 | M60: 80.30 | N60: 48.18 | O60: 78.22 | P60: 是 | Q60: 3
A61: 58 | B61: 陈雪丹 | C61: 2023082712 | D61: 27 | E61: 12 | F61: 乌当中学 | G61: 初中 | H61: 美术 | I61: 初中美术 | J61: 111.61 | K61: 74.41 | L61: 29.76 | M61: 80.60 | N61: 48.36 | O61: 78.12 | P61: 是 | Q61: 4
A62: 59 | B62: 李丝丝 | C62: 2023082808 | D62: 28 | E62: 08 | F62: 乌当中学 | G62: 初中 | H62: 美术 | I62: 初中美术 | J62: 115.24 | K62: 76.83 | L62: 30.73 | M62: 78.50 | N62: 47.10 | O62: 77.83
A63: 60 | B63: 饶毅 | C63: 2023082605 | D63: 26 | E63: 05 | F63: 乌当中学 | G63: 初中 | H63: 美术 | I63: 初中美术 | J63: 109.87 | K63: 73.25 | L63: 29.30 | M63: 80.67 | N63: 48.40 | O63: 77.70
A64: 61 | B64: 万雪琴 | C64: 2023082720 | D64: 27 | E64: 20 | F64: 乌当中学 | G64: 初中 | H64: 美术 | I64: 初中美术 | J64: 109.38 | K64: 72.92 | L64: 29.17 | M64: 80.67 | N64: 48.40 | O64: 77.57
A65: 62 | B65: 王晶剑 | C65: 2023082908 | D65: 29 | E65: 08 | F65: 乌当中学 | G65: 初中 | H65: 美术 | I65: 初中美术 | J65: 116.98 | K65: 77.99 | L65: 31.19 | M65: 76.00 | N65: 45.60 | O65: 76.79
A66: 63 | B66: 赵珊 | C66: 2023082624 | D66: 26 | E66: 24 | F66: 乌当中学 | G66: 初中 | H66: 美术 | I66: 初中美术 | J66: 109.29 | K66: 72.86 | L66: 29.14 | M66: 75.07 | N66: 45.04 | O66: 74.19
A67: 64 | B67: 周露 | C67: 2023082616 | D67: 26 | E67: 16 | F67: 乌当中学 | G67: 初中 | H67: 美术 | I67: 初中美术 | J67: 109.78 | K67: 73.19 | L67: 29.27 | M67: 73.00 | N67: 43.80 | O67: 73.07
A68: 65 | B68: 桂航 | C68: 2023082830 | D68: 28 | E68: 30 | F68: 乌当中学 | G68: 初中 | H68: 美术 | I68: 初中美术 | J68: 109.87 | K68: =J68/1.5 -> 73.25 | L68: 29.30 | M68: 缺考 | O68: =L68+N68 -> 29.30
A69: 66 | B69: 周琳霞 | C69: 2023082707 | D69: 27 | E69: 07 | F69: 乌当中学 | G69: 初中 | H69: 美术 | I69: 初中美术 | J69: 109.29 | K69: 72.86 | L69: 29.14 | M69: 缺考 | O69: 29.14
A70: 67 | B70: 王沛怡 | C70: 2023080507 | D70: 05 | E70: 07 | F70: 乌当二中 | G70: 初中 | H70: 生物 | I70: 初中生物 | J70: 117.48 | K70: 78.32 | L70: =K70*0.4 -> 31.33 | M70: 85.67 | N70: =M70*0.6 -> 51.40 | O70: 82.73 | P70: 是 | Q70: 1
A71: 68 | B71: 李惠 | C71: 2023080601 | D71: 06 | E71: 01 | F71: 乌当二中 | G71: 初中 | H71: 生物 | I71: 初中生物 | J71: 116.16 | K71: 77.44 | L71: 30.98 | M71: 86.00 | N71: 51.60 | O71: 82.58 | P71: 是 | Q71: 2
A72: 69 | B72: 沈小雨 | C72: 2023080710 | D72: 07 | E72: 10 | F72: 乌当二中 | G72: 初中 | H72: 生物 | I72: 初中生物 | J72: 115.71 | K72: 77.14 | L72: 30.86 | M72: 85.33 | N72: 51.20 | O72: 82.05 | P72: 是 | Q72: 3
A73: 70 | B73: 罗金绒 | C73: 2023080624 | D73: 06 | E73: 24 | F73: 乌当二中 | G73: 初中 | H73: 生物 | I73: 初中生物 | J73: 118.47 | K73: 78.98 | L73: 31.59 | M73: 81.33 | N73: 48.80 | O73: 80.39 | P73: 是 | Q73: 4
A74: 71 | B74: 徐丹 | C74: 2023080704 | D74: 07 | E74: 04 | F74: 乌当二中 | G74: 初中 | H74: 生物 | I74: 初中生物 | J74: 121.55 | K74: 81.03 | L74: 32.41 | M74: 79.67 | N74: 47.80 | O74: 80.22 | P74: 是 | Q74: 5
A75: 72 | B75: 陈涛 | C75: 2023080812 | D75: 08 | E75: 12 | F75: 乌当二中 | G75: 初中 | H75: 生物 | I75: 初中生物 | J75: 117.71 | K75: 78.47 | L75: 31.39 | M75: 81.00 | N75: 48.60 | O75: 79.99 | P75: 是 | Q75: 6
A76: 73 | B76: 刘双情 | C76: 2023080407 | D76: 04 | E76: 07 | F76: 乌当二中 | G76: 初中 | H76: 生物 | I76: 初中生物 | J76: 113.91 | K76: 75.94 | L76: 30.38 | M76: 81.67 | N76: 49.00 | O76: 79.38
A77: 74 | B77: 杨贵桃 | C77: 2023080313 | D77: 03 | E77: 13 | F77: 乌当二中 | G77: 初中 | H77: 生物 | I77: 初中生物 | J77: 115.38 | K77: 76.92 | L77: 30.77 | M77: 81.00 | N77: 48.60 | O77: 79.37
A78: 75 | B78: 何小艳 | C78: 2023080627 | D78: 06 | E78: 27 | F78: 乌当二中 | G78: 初中 | H78: 生物 | I78: 初中生物 | J78: 116.48 | K78: 77.65 | L78: 31.06 | M78: 80.33 | N78: 48.20 | O78: 79.26
A79: 76 | B79: 文梦飞 | C79: 2023080426 | D79: 04 | E79: 26 | F79: 乌当二中 | G79: 初中 | H79: 生物 | I79: 初中生物 | J79: 114.14 | K79: 76.09 | L79: 30.44 | M79: 81.00 | N79: 48.60 | O79: 79.04
A80: 77 | B80: 周娟 | C80: 2023080801 | D80: 08 | E80: 01 | F80: 乌当二中 | G80: 初中 | H80: 生物 | I80: 初中生物 | J80: 113.83 | K80: 75.89 | L80: 30.35 | M80: 79.67 | N80: 47.80 | O80: 78.16
A81: 78 | B81: 林啟航 | C81: 2023080413 | D81: 04 | E81: 13 | F81: 乌当二中 | G81: 初中 | H81: 生物 | I81: 初中生物 | J81: 112.79 | K81: 75.19 | L81: 30.08 | M81: 79.33 | N81: 47.60 | O81: 77.68
A82: 79 | B82: 唐琴 | C82: 2023080503 | D82: 05 | E82: 03 | F82: 乌当二中 | G82: 初中 | H82: 生物 | I82: 初中生物 | J82: 116.04 | K82: 77.36 | L82: 30.94 | M82: 77.00 | N82: 46.20 | O82: 77.14
A83: 80 | B83: 杨飘飘 | C83: 2023080809 | D83: 08 | E83: 09 | F83: 乌当二中 | G83: 初中 | H83: 生物 | I83: 初中生物 | J83: 114.57 | K83: 76.38 | L83: 30.55 | M83: 75.00 | N83: 45.00 | O83: 75.55
A84: 81 | B84: 赵芬 | C84: 2023080730 | D84: 07 | E84: 30 | F84: 乌当二中 | G84: 初中 | H84: 生物 | I84: 初中生物 | J84: 114.98 | K84: 76.65 | L84: 30.66 | M84: 74.33 | N84: 44.60 | O84: 75.26
A85: 82 | B85: 练冰冰 | C85: 2023080614 | D85: 06 | E85: 14 | F85: 乌当二中 | G85: 初中 | H85: 生物 | I85: 初中生物 | J85: 112.7 | K85: 75.13 | L85: 30.05 | M85: 75.00 | N85: 45.00 | O85: 75.05
A86: 83 | B86: 林艳 | C86: 2023080324 | D86: 03 | E86: 24 | F86: 乌当二中 | G86: 初中 | H86: 生物 | I86: 初中生物 | J86: 121.15 | K86: 80.77 | L86: 32.31 | M86: 缺考 | O86: 32.31
A87: 84 | B87: 卢霜 | C87: 2023080813 | D87: 08 | E87: 13 | F87: 乌当二中 | G87: 初中 | H87: 生物 | I87: 初中生物 | J87: 117.05 | K87: 78.03 | L87: 31.21 | M87: 缺考 | O87: 31.21
A88: 85 | B88: 陈盼 | C88: 2023085226 | D88: 52 | E88: 26 | F88: 乌当中学 | G88: 初中 | H88: 数学01 | I88: 初中数学01 | J88: 108.45 | K88: 72.30 | L88: 28.92 | M88: 85.13 | N88: =M88*0.6 -> 51.08 | O88: 80.00 | P88: 是 | Q88: 1
A89: 86 | B89: 谢荣萤 | C89: 2023085306 | D89: 53 | E89: 06 | F89: 乌当中学 | G89: 初中 | H89: 数学01 | I89: 初中数学01 | J89: 110.71 | K89: 73.81 | L89: 29.52 | M89: 83.93 | N89: 50.36 | O89: 79.88 | P89: 是 | Q89: 2
A90: 87 | B90: 罗桎皓 | C90: 2023085216 | D90: 52 | E90: 16 | F90: 乌当中学 | G90: 初中 | H90: 数学01 | I90: 初中数学01 | J90: 102.72 | K90: 68.48 | L90: 27.39 | M90: 87.37 | N90: 52.42 | O90: 79.81 | P90: 是 | Q90: 3
A91: 88 | B91: 唐大岭 | C91: 2023085307 | D91: 53 | E91: 07 | F91: 乌当中学 | G91: 初中 | H91: 数学01 | I91: 初中数学01 | J91: 104.79 | K91: 69.86 | L91: 27.94 | M91: 84.00 | N91: 50.40 | O91: 78.34 | P91: 是 | Q91: 4
A92: 89 | B92: 文雪梅 | C92: 2023085207 | D92: 52 | E92: 07 | F92: 乌当中学 | G92: 初中 | H92: 数学01 | I92: 初中数学01 | J92: 106.56 | K92: 71.04 | L92: 28.42 | M92: 83.20 | N92: 49.92 | O92: 78.34 | P92: 是 | Q92: 4
A93: 90 | B93: 韩莉芬 | C93: 2023085217 | D93: 52 | E93: 17 | F93: 乌当中学 | G93: 初中 | H93: 数学01 | I93: 初中数学01 | J93: 102.06 | K93: 68.04 | L93: 27.22 | M93: 84.27 | N93: 50.56 | O93: 77.78 | P93: 是 | Q93: 6
A94: 91 | B94: 郭宝山 | C94: 2023085215 | D94: 52 | E94: 15 | F94: 乌当中学 | G94: 初中 | H94: 数学01 | I94: 初中数学01 | J94: 96.87 | K94: 64.58 | L94: 25.83 | M94: 85.83 | N94: 51.50 | O94: 77.33 | P94: 是 | Q94: 7
A95: 92 | B95: 芶兰易 | C95: 2023085208 | D95: 52 | E95: 08 | F95: 乌当中学 | G95: 初中 | H95: 数学01 | I95: 初中数学01 | J95: 96.04 | K95: 64.03 | L95: 25.61 | M95: 85.27 | N95: 51.16 | O95: 76.77 | P95: 是 | Q95: 8
A96: 93 | B96: 王忠权 | C96: 2023085212 | D96: 52 | E96: 12 | F96: 乌当中学 | G96: 初中 | H96: 数学01 | I96: 初中数学01 | J96: 98.79 | K96: 65.86 | L96: 26.34 | M96: 83.00 | N96: 49.80 | O96: 76.14 | P96: 是 | Q96: 9
A97: 94 | B97: 郑冰钦 | C97: 2023085314 | D97: 53 | E97: 14 | F97: 乌当中学 | G97: 初中 | H97: 数学01 | I97: 初中数学01 | J97: 90.15 | K97: 60.10 | L97: 24.04 | M97: 86.73 | N97: 52.04 | O97: 76.08
A98: 95 | B98: 陈娇 | C98: 2023085304 | D98: 53 | E98: 04 | F98: 乌当中学 | G98: 初中 | H98: 数学01 | I98: 初中数学01 | J98: 109.44 | K98: 72.96 | L98: 29.18 | M98: 77.93 | N98: 46.76 | O98: 75.94
A99: 96 | B99: 秦文强 | C99: 2023085219 | D99: 52 | E99: 19 | F99: 乌当中学 | G99: 初中 | H99: 数学01 | I99: 初中数学01 | J99: 99.04 | K99: 66.03 | L99: 26.41 | M99: 79.00 | N99: 47.40 | O99: 73.81
A100: 97 | B100: 杨成宇 | C100: 2023085311 | D100: 53 | E100: 11 | F100: 乌当中学 | G100: 初中 | H100: 数学01 | I100: 初中数学01 | J100: 88.73 | K100: 59.15 | L100: 23.66 | M100: 82.53 | N100: 49.52 | O100: 73.18
A101: 98 | B101: 高兰 | C101: 2023085303 | D101: 53 | E101: 03 | F101: 乌当中学 | G101: 初中 | H101: 数学01 | I101: 初中数学01 | J101: 97.06 | K101: 64.71 | L101: 25.88 | M101: 77.33 | N101: 46.40 | O101: 72.28
A102: 99 | B102: 费学军 | C102: 2023085228 | D102: 52 | E102: 28 | F102: 乌当中学 | G102: 初中 | H102: 数学01 | I102: 初中数学01 | J102: 97.45 | K102: 64.97 | L102: 25.99 | M102: 75.93 | N102: 45.56 | O102: 71.54
A103: 100 | B103: 尹书琼 | C103: 2023085223 | D103: 52 | E103: 23 | F103: 乌当中学 | G103: 初中 | H103: 数学01 | I103: 初中数学01 | J103: 93.46 | K103: 62.31 | L103: 24.92 | M103: 75.47 | N103: 45.28 | O103: 70.20
A104: 101 | B104: 付雪梅 | C104: 2023085229 | D104: 52 | E104: 29 | F104: 乌当中学 | G104: 初中 | H104: 数学01 | I104: 初中数学01 | J104: 90.88 | K104: 60.59 | L104: 24.23 | M104: 76.60 | N104: 45.96 | O104: 70.19
A105: 102 | B105: 张悦 | C105: 2023085312 | D105: 53 | E105: 12 | F105: 乌当中学 | G105: 初中 | H105: 数学01 | I105: 初中数学01 | J105: 88.97 | K105: 59.31 | L105: 23.73 | M105: 70.43 | N105: 42.26 | O105: 65.98
A106: 103 | B106: 冯香 | C106: 2023085313 | D106: 53 | E106: 13 | F106: 乌当中学 | G106: 初中 | H106: 数学01 | I106: 初中数学01 | J106: 108.95 | K106: 72.63 | L106: 29.05 | M106: 缺考 | O106: 29.05
A107: 104 | B107: 陶永和 | C107: 2023085308 | D107: 53 | E107: 08 | F107: 乌当中学 | G107: 初中 | H107: 数学01 | I107: 初中数学01 | J107: 101.23 | K107: 67.49 | L107: 26.99 | M107: 缺考 | O107: 26.99
A108: 105 | B108: 杨霞 | C108: 2023085309 | D108: 53 | E108: 09 | F108: 乌当中学 | G108: 初中 | H108: 数学01 | I108: 初中数学01 | J108: 100.12 | K108: 66.75 | L108: 26.70 | M108: 缺考 | O108: 26.70
A109: 106 | B109: 欧丹丹 | C109: 2023085227 | D109: 52 | E109: 27 | F109: 乌当中学 | G109: 初中 | H109: 数学01 | I109: 初中数学01 | J109: 96.1 | K109: 64.07 | L109: 25.63 | M109: 缺考 | O109: 25.63
A110: 107 | B110: 李韬 | C110: 2023085301 | D110: 53 | E110: 01 | F110: 乌当中学 | G110: 初中 | H110: 数学01 | I110: 初中数学01 | J110: 93.72 | K110: 62.48 | L110: 24.99 | M110: 缺考 | O110: 24.99
A111: 108 | B111: 韩余凯 | C111: 2023085210 | D111: 52 | E111: 10 | F111: 乌当中学 | G111: 初中 | H111: 数学01 | I111: 初中数学01 | J111: 92.05 | K111: 61.37 | L111: 24.55 | M111: 缺考 | O111: 24.55
A112: 109 | B112: 王旭琴 | C112: 2023085218 | D112: 52 | E112: 18 | F112: 乌当中学 | G112: 初中 | H112: 数学01 | I112: 初中数学01 | J112: 89.65 | K112: 59.77 | L112: 23.91 | M112: 缺考 | O112: 23.91
A113: 110 | B113: 王娇 | C113: 2023085310 | D113: 53 | E113: 10 | F113: 乌当中学 | G113: 初中 | H113: 数学01 | I113: 初中数学01 | J113: 86.44 | K113: 57.63 | L113: 23.05 | M113: 缺考 | O113: 23.05
A114: 111 | B114: 王梅 | C114: 2023085221 | D114: 52 | E114: 21 | F114: 乌当中学 | G114: 初中 | H114: 数学01 | I114: 初中数学01 | J114: 86.23 | K114: 57.49 | L114: 22.99 | M114: 缺考 | O114: 22.99
A115: 112 | B115: 陈丽婷 | C115: 2023085412 | D115: 54 | E115: 12 | F115: 乌当中学 | G115: 初中 | H115: 数学02 | I115: 初中数学02 | J115: 119.16 | K115: 79.44 | L115: 31.78 | M115: 75.33 | N115: =M115*0.6 -> 45.20 | O115: 76.97 | P115: 是 | Q115: 1
A116: 113 | B116: 石娟 | C116: 2023085315 | D116: 53 | E116: 15 | F116: 乌当中学 | G116: 初中 | H116: 数学02 | I116: 初中数学02 | J116: 105.38 | K116: 70.25 | L116: 28.10 | M116: 77.67 | N116: 46.60 | O116: 74.70 | P116: 是 | Q116: 2
A117: 114 | B117: 高清 | C117: 2023085402 | D117: 54 | E117: 02 | F117: 乌当中学 | G117: 初中 | H117: 数学02 | I117: 初中数学02 | J117: 100.96 | K117: 67.31 | L117: 26.92 | M117: 79.00 | N117: 47.40 | O117: 74.32 | P117: 是 | Q117: 3
A118: 115 | B118: 黄潇茹 | C118: 2023085321 | D118: 53 | E118: 21 | F118: 乌当中学 | G118: 初中 | H118: 数学02 | I118: 初中数学02 | J118: 96.24 | K118: 64.16 | L118: 25.66 | M118: 80.33 | N118: 48.20 | O118: 73.86 | P118: 是 | Q118: 4
A119: 116 | B119: 代丽 | C119: 2023085318 | D119: 53 | E119: 18 | F119: 乌当中学 | G119: 初中 | H119: 数学02 | I119: 初中数学02 | J119: 104.78 | K119: 69.85 | L119: 27.94 | M119: 74.67 | N119: 44.80 | O119: 72.74 | P119: 是 | Q119: 5
A120: 117 | B120: 樊艳 | C120: 2023085404 | D120: 54 | E120: 04 | F120: 乌当中学 | G120: 初中 | H120: 数学02 | I120: 初中数学02 | J120: 109.24 | K120: 72.83 | L120: 29.13 | M120: 72.67 | N120: 43.60 | O120: 72.73 | P120: 是 | Q120: 6
A121: 118 | B121: 张顺旭 | C121: 2023085406 | D121: 54 | E121: 06 | F121: 乌当中学 | G121: 初中 | H121: 数学02 | I121: 初中数学02 | J121: 111.3 | K121: 74.20 | L121: 29.68 | M121: 70.67 | N121: 42.40 | O121: 72.08 | P121: 是 | Q121: 7
A122: 119 | B122: 杨红花 | C122: 2023085322 | D122: 53 | E122: 22 | F122: 乌当中学 | G122: 初中 | H122: 数学02 | I122: 初中数学02 | J122: 102.03 | K122: 68.02 | L122: 27.21 | M122: 74.00 | N122: 44.40 | O122: 71.61 | P122: 是 | Q122: 8
A123: 120 | B123: 仲洋 | C123: 2023085401 | D123: 54 | E123: 01 | F123: 乌当中学 | G123: 初中 | H123: 数学02 | I123: 初中数学02 | J123: 101.63 | K123: 67.75 | L123: 27.10 | M123: 74.00 | N123: 44.40 | O123: 71.50 | P123: 是 | Q123: 9
A124: 121 | B124: 安飞 | C124: 2023085414 | D124: 54 | E124: 14 | F124: 乌当中学 | G124: 初中 | H124: 数学02 | I124: 初中数学02 | J124: 97.82 | K124: 65.21 | L124: 26.09 | M124: 73.67 | N124: 44.20 | O124: 70.29
A125: 122 | B125: 张小龙 | C125: 2023085323 | D125: 53 | E125: 23 | F125: 乌当中学 | G125: 初中 | H125: 数学02 | I125: 初中数学02 | J125: 95.63 | K125: 63.75 | L125: 25.50 | M125: 71.67 | N125: 43.00 | O125: 68.50
A126: 123 | B126: 张菊 | C126: 2023085409 | D126: 54 | E126: 09 | F126: 乌当中学 | G126: 初中 | H126: 数学02 | I126: 初中数学02 | J126: 92.21 | K126: 61.47 | L126: 24.59 | M126: 71.00 | N126: 42.60 | O126: 67.19
A127: 124 | B127: 沈晓东 | C127: 2023085326 | D127: 53 | E127: 26 | F127: 乌当中学 | G127: 初中 | H127: 数学02 | I127: 初中数学02 | J127: 92.38 | K127: 61.59 | L127: 24.63 | M127: 70.33 | N127: 42.20 | O127: 66.83
A128: 125 | B128: 安寅丽 | C128: 2023085407 | D128: 54 | E128: 07 | F128: 乌当中学 | G128: 初中 | H128: 数学02 | I128: 初中数学02 | J128: 94.46 | K128: 62.97 | L128: 25.19 | M128: 67.67 | N128: 40.60 | O128: 65.79
A129: 126 | B129: 王江艳 | C129: 2023085415 | D129: 54 | E129: 15 | F129: 乌当中学 | G129: 初中 | H129: 数学02 | I129: 初中数学02 | J129: 98.81 | K129: 65.87 | L129: 26.35 | M129: 缺考 | O129: 26.35
A130: 127 | B130: 杨婷 | C130: 2023085421 | D130: 54 | E130: 21 | F130: 乌当中学 | G130: 初中 | H130: 数学02 | I130: 初中数学02 | J130: 95.4 | K130: 63.60 | L130: 25.44 | M130: 缺考 | O130: 25.44
A131: 128 | B131: 蒋瑶 | C131: 2023085329 | D131: 53 | E131: 29 | F131: 乌当中学 | G131: 初中 | H131: 数学02 | I131: 初中数学02 | J131: 95.03 | K131: 63.35 | L131: 25.34 | M131: 缺考 | O131: 25.34
A132: 129 | B132: 张燕 | C132: 2023085416 | D132: 54 | E132: 16 | F132: 乌当中学 | G132: 初中 | H132: 数学02 | I132: 初中数学02 | J132: 94.25 | K132: =J132/1.5 -> 62.83 | L132: 25.13 | M132: 缺考 | O132: =L132+N132 -> 25.13
A133: 130 | B133: 穆小彩 | C133: 2023085324 | D133: 53 | E133: 24 | F133: 乌当中学 | G133: 初中 | H133: 数学02 | I133: 初中数学02 | J133: 93.71 | K133: 62.47 | L133: 24.99 | M133: 缺考 | O133: 24.99
A134: 131 | B134: 陈春林 | C134: 2023085411 | D134: 54 | E134: 11 | F134: 乌当中学 | G134: 初中 | H134: 数学02 | I134: 初中数学02 | J134: 93.21 | K134: 62.14 | L134: =K134*0.4 -> 24.86 | M134: 缺考 | O134: 24.86
A135: 132 | B135: 刘文政 | C135: 2023085327 | D135: 53 | E135: 27 | F135: 乌当中学 | G135: 初中 | H135: 数学02 | I135: 初中数学02 | J135: 92.66 | K135: 61.77 | L135: 24.71 | M135: 缺考 | O135: 24.71
A136: 133 | B136: 吴太娜 | C136: 2023085413 | D136: 54 | E136: 13 | F136: 乌当中学 | G136: 初中 | H136: 数学02 | I136: 初中数学02 | J136: 92.25 | K136: 61.50 | L136: 24.60 | M136: 缺考 | O136: 24.60
A137: 134 | B137: 邓建桠 | C137: 2023085316 | D137: 53 | E137: 16 | F137: 乌当中学 | G137: 初中 | H137: 数学02 | I137: 初中数学02 | J137: 92.19 | K137: 61.46 | L137: 24.58 | M137: 缺考 | O137: 24.58
A138: 135 | B138: 张银春 | C138: 2023085319 | D138: 53 | E138: 19 | F138: 乌当中学 | G138: 初中 | H138: 数学02 | I138: 初中数学02 | J138: 91.4 | K138: 60.93 | L138: 24.37 | M138: 缺考 | O138: 24.37
A139: 136 | B139: 杨文静 | C139: 2023085417 | D139: 54 | E139: 17 | F139: 乌当中学 | G139: 初中 | H139: 数学02 | I139: 初中数学02 | J139: 87.46 | K139: 58.31 | L139: 23.32 | M139: 缺考 | O139: 23.32
A140: 137 | B140: 郑令 | C140: 2023085410 | D140: 54 | E140: 10 | F140: 乌当中学 | G140: 初中 | H140: 数学02 | I140: 初中数学02 | J140: 86.55 | K140: 57.70 | L140: 23.08 | M140: 缺考 | O140: 23.08
A141: 138 | B141: 陈旭 | C141: 2023085403 | D141: 54 | E141: 03 | F141: 乌当中学 | G141: 初中 | H141: 数学02 | I141: 初中数学02 | J141: 85.94 | K141: 57.29 | L141: 22.92 | M141: 缺考 | O141: 22.92
A142: 139 | B142: 何遂龙 | C142: 2023081904 | D142: 19 | E142: 04 | F142: 乌当中学 | G142: 初中 | H142: 体育 | I142: 初中体育 | J142: 107.56 | K142: 71.71 | L142: 28.68 | M142: 82.00 | N142: =M142*0.6 -> 49.20 | O142: 77.88 | P142: 是 | Q142: 1
A143: 140 | B143: 侯金彩 | C143: 2023081923 | D143: 19 | E143: 23 | F143: 乌当中学 | G143: 初中 | H143: 体育 | I143: 初中体育 | J143: 115.54 | K143: 77.03 | L143: 30.81 | M143: 78.33 | N143: 47.00 | O143: 77.81 | P143: 是 | Q143: 2
A144: 141 | B144: 屠晓龙 | C144: 2023081928 | D144: 19 | E144: 28 | F144: 乌当中学 | G144: 初中 | H144: 体育 | I144: 初中体育 | J144: 115.74 | K144: 77.16 | L144: 30.86 | M144: 77.00 | N144: 46.20 | O144: 77.06 | P144: 是 | Q144: 3
A145: 142 | B145: 杨茂谨 | C145: 2023081616 | D145: 16 | E145: 16 | F145: 乌当中学 | G145: 初中 | H145: 体育 | I145: 初中体育 | J145: 105.96 | K145: 70.64 | L145: 28.26 | M145: 81.00 | N145: 48.60 | O145: 76.86 | P145: 是 | Q145: 4
A146: 143 | B146: 郭珍红 | C146: 2023081724 | D146: 17 | E146: 24 | F146: 乌当中学 | G146: 初中 | H146: 体育 | I146: 初中体育 | J146: 111.45 | K146: 74.30 | L146: 29.72 | M146: 78.33 | N146: 47.00 | O146: 76.72 | P146: 是 | Q146: 5
A147: 144 | B147: 刘仕福 | C147: 2023081915 | D147: 19 | E147: 15 | F147: 乌当中学 | G147: 初中 | H147: 体育 | I147: 初中体育 | J147: 117.3 | K147: 78.20 | L147: 31.28 | M147: 75.67 | N147: 45.40 | O147: 76.68 | P147: 是 | Q147: 6
A148: 145 | B148: 张玉杰 | C148: 2023081929 | D148: 19 | E148: 29 | F148: 乌当中学 | G148: 初中 | H148: 体育 | I148: 初中体育 | J148: 112.27 | K148: 74.85 | L148: 29.94 | M148: 76.00 | N148: 45.60 | O148: 75.54 | P148: 是 | Q148: 7
A149: 146 | B149: 陈体兵 | C149: 2023081624 | D149: 16 | E149: 24 | F149: 乌当中学 | G149: 初中 | H149: 体育 | I149: 初中体育 | J149: 110.46 | K149: 73.64 | L149: 29.46 | M149: 76.67 | N149: 46.00 | O149: 75.46
A150: 147 | B150: 杨李超 | C150: 2023081921 | D150: 19 | E150: 21 | F150: 乌当中学 | G150: 初中 | H150: 体育 | I150: 初中体育 | J150: 109.23 | K150: 72.82 | L150: 29.13 | M150: 76.67 | N150: 46.00 | O150: 75.13
A151: 148 | B151: 向容容 | C151: 2023081620 | D151: 16 | E151: 20 | F151: 乌当中学 | G151: 初中 | H151: 体育 | I151: 初中体育 | J151: 114.89 | K151: 76.59 | L151: 30.64 | M151: 74.00 | N151: 44.40 | O151: 75.04
A152: 149 | B152: 常涛 | C152: 2023081713 | D152: 17 | E152: 13 | F152: 乌当中学 | G152: 初中 | H152: 体育 | I152: 初中体育 | J152: 103.56 | K152: 69.04 | L152: 27.62 | M152: 78.67 | N152: 47.20 | O152: 74.82
A153: 150 | B153: 周江 | C153: 2023081814 | D153: 18 | E153: 14 | F153: 乌当中学 | G153: 初中 | H153: 体育 | I153: 初中体育 | J153: 106.38 | K153: 70.92 | L153: 28.37 | M153: 77.00 | N153: 46.20 | O153: 74.57
A154: 151 | B154: 王家清 | C154: 2023081712 | D154: 17 | E154: 12 | F154: 乌当中学 | G154: 初中 | H154: 体育 | I154: 初中体育 | J154: 110.07 | K154: 73.38 | L154: 29.35 | M154: 75.33 | N154: 45.20 | O154: 74.55
A155: 152 | B155: 杨容 | C155: 2023081801 | D155: 18 | E155: 01 | F155: 乌当中学 | G155: 初中 | H155: 体育 | I155: 初中体育 | J155: 112.39 | K155: 74.93 | L155: 29.97 | M155: 73.67 | N155: 44.20 | O155: 74.17
A156: 153 | B156: 杨通祥 | C156: 2023081621 | D156: 16 | E156: 21 | F156: 乌当中学 | G156: 初中 | H156: 体育 | I156: 初中体育 | J156: 112.24 | K156: 74.83 | L156: 29.93 | M156: 73.67 | N156: 44.20 | O156: 74.13
A157: 154 | B157: 胡志勇 | C157: 2023082011 | D157: 20 | E157: 11 | F157: 乌当中学 | G157: 初中 | H157: 体育 | I157: 初中体育 | J157: 108.68 | K157: 72.45 | L157: 28.98 | M157: 73.00 | N157: 43.80 | O157: 72.78
A158: 155 | B158: 罗亚文 | C158: 2023081608 | D158: 16 | E158: 08 | F158: 乌当中学 | G158: 初中 | H158: 体育 | I158: 初中体育 | J158: 104.02 | K158: =J158/1.5 -> 69.35 | L158: 27.74 | M158: 74.67 | N158: 44.80 | O158: =L158+N158 -> 72.54
A159: 156 | B159: 姚郭 | C159: 2023081614 | D159: 16 | E159: 14 | F159: 乌当中学 | G159: 初中 | H159: 体育 | I159: 初中体育 | J159: 106.89 | K159: 71.26 | L159: 28.50 | M159: 70.00 | N159: 42.00 | O159: 70.50
A160: 157 | B160: 翁荣基 | C160: 2023081924 | D160: 19 | E160: 24 | F160: 乌当中学 | G160: 初中 | H160: 体育 | I160: 初中体育 | J160: 105.55 | K160: 70.37 | L160: 28.15 | M160: 缺考 | O160: 28.15
A161: 158 | B161: 辛家杰 | C161: 2023081617 | D161: 16 | E161: 17 | F161: 乌当中学 | G161: 初中 | H161: 体育 | I161: 初中体育 | J161: 105.03 | K161: 70.02 | L161: 28.01 | M161: 缺考 | O161: 28.01
A162: 159 | B162: 陈袁 | C162: 2023081920 | D162: 19 | E162: 20 | F162: 乌当中学 | G162: 初中 | H162: 体育 | I162: 初中体育 | J162: 104.3 | K162: 69.53 | L162: 27.81 | M162: 缺考 | O162: 27.81
A163: 160 | B163: 姜素 | C163: 2023082026 | D163: 20 | E163: 26 | F163: 乌当中学 | G163: 初中 | H163: 心理辅导 | I163: 初中心理辅导 | J163: 112.91 | K163: 75.27 | L163: 30.11 | M163: 83.67 | N163: =M163*0.6 -> 50.20 | O163: 80.31 | P163: 是 | Q163: 1
A164: 161 | B164: 杨妮贤 | C164: 2023082012 | D164: 20 | E164: 12 | F164: 乌当中学 | G164: 初中 | H164: 心理辅导 | I164: 初中心理辅导 | J164: 111.44 | K164: 74.29 | L164: 29.72 | M164: 81.00 | N164: 48.60 | O164: 78.32
A165: 162 | B165: 王桂雲 | C165: 2023082030 | D165: 20 | E165: 30 | F165: 乌当中学 | G165: 初中 | H165: 心理辅导 | I165: 初中心理辅导 | J165: 110.55 | K165: 73.70 | L165: 29.48 | M165: 80.67 | N165: 48.40 | O165: 77.88
A166: 163 | B166: 邹益凤 | C166: 2023080124 | D166: 01 | E166: 24 | F166: 乌当中学 | G166: 初中 | H166: 信息技术 | I166: 初中信息技术 | J166: 118.82 | K166: 79.21 | L166: 31.69 | M166: 84.39 | N166: 50.63 | O166: 82.32 | P166: 是 | Q166: 1
A167: 164 | B167: 姚彩 | C167: 2023080126 | D167: 01 | E167: 26 | F167: 乌当中学 | G167: 初中 | H167: 信息技术 | I167: 初中信息技术 | J167: 120.8 | K167: 80.53 | L167: 32.21 | M167: 82.24 | N167: 49.34 | O167: 81.56 | P167: 是 | Q167: 2
A168: 165 | B168: 赵竹 | C168: 2023080223 | D168: 02 | E168: 23 | F168: 乌当中学 | G168: 初中 | H168: 信息技术 | I168: 初中信息技术 | J168: 115.14 | K168: 76.76 | L168: 30.70 | M168: 83.17 | N168: 49.90 | O168: 80.61
A169: 166 | B169: 韦国慧 | C169: 2023080129 | D169: 01 | E169: 29 | F169: 乌当中学 | G169: 初中 | H169: 信息技术 | I169: 初中信息技术 | J169: 114.87 | K169: 76.58 | L169: 30.63 | M169: 82.25 | N169: 49.35 | O169: 79.98
A170: 167 | B170: 施辉艳 | C170: 2023080203 | D170: 02 | E170: 03 | F170: 乌当中学 | G170: 初中 | H170: 信息技术 | I170: 初中信息技术 | J170: 115.5 | K170: 77.00 | L170: 30.80 | M170: 80.70 | N170: 48.42 | O170: 79.22
A171: 168 | B171: 高如慧 | C171: 2023080111 | D171: 01 | E171: 11 | F171: 乌当中学 | G171: 初中 | H171: 信息技术 | I171: 初中信息技术 | J171: 114.7 | K171: 76.47 | L171: 30.59 | M171: 缺考 | O171: 30.59
A172: 169 | B172: 罗丽 | C172: 2023086319 | D172: 63 | E172: 19 | F172: 乌当中学 | G172: 初中 | H172: 音乐 | I172: 初中音乐 | J172: 106.36 | K172: =J172/1.5 -> 70.91 | L172: 28.36 | M172: 83.83 | N172: =M172*0.6 -> 50.30 | O172: =L172+N172 -> 78.66 | P172: 是 | Q172: 1
A173: 170 | B173: 丁小莲 | C173: 2023086323 | D173: 63 | E173: 23 | F173: 乌当中学 | G173: 初中 | H173: 音乐 | I173: 初中音乐 | J173: 107.73 | K173: 71.82 | L173: 28.73 | M173: 81.83 | N173: 49.10 | O173: 77.83 | P173: 是 | Q173: 2
A174: 171 | B174: 张丽兰 | C174: 2023086416 | D174: 64 | E174: 16 | F174: 乌当中学 | G174: 初中 | H174: 音乐 | I174: 初中音乐 | J174: 112.39 | K174: 74.93 | L174: 29.97 | M174: 79.67 | N174: 47.80 | O174: 77.77 | P174: 是 | Q174: 3
A175: 172 | B175: 陈慧 | C175: 2023086430 | D175: 64 | E175: 30 | F175: 乌当中学 | G175: 初中 | H175: 音乐 | I175: 初中音乐 | J175: 103.2 | K175: 68.80 | L175: 27.52 | M175: 83.67 | N175: 50.20 | O175: 77.72 | P175: 是 | Q175: 4
A176: 173 | B176: 岑芳芳 | C176: 2023086427 | D176: 64 | E176: 27 | F176: 乌当中学 | G176: 初中 | H176: 音乐 | I176: 初中音乐 | J176: 107.1 | K176: 71.40 | L176: 28.56 | M176: 81.13 | N176: 48.68 | O176: 77.24
A177: 174 | B177: 杨涛 | C177: 2023086410 | D177: 64 | E177: 10 | F177: 乌当中学 | G177: 初中 | H177: 音乐 | I177: 初中音乐 | J177: 99.17 | K177: 66.11 | L177: 26.45 | M177: 84.33 | N177: 50.60 | O177: 77.04
A178: 175 | B178: 张行立 | C178: 2023086326 | D178: 63 | E178: 26 | F178: 乌当中学 | G178: 初中 | H178: 音乐 | I178: 初中音乐 | J178: 98.53 | K178: 65.69 | L178: 26.27 | M178: 84.60 | N178: 50.76 | O178: 77.03
A179: 176 | B179: 王晓英 | C179: 2023086322 | D179: 63 | E179: 22 | F179: 乌当中学 | G179: 初中 | H179: 音乐 | I179: 初中音乐 | J179: 104.37 | K179: 69.58 | L179: 27.83 | M179: 81.40 | N179: 48.84 | O179: 76.67
A180: 177 | B180: 韦醒 | C180: 2023086418 | D180: 64 | E180: 18 | F180: 乌当中学 | G180: 初中 | H180: 音乐 | I180: 初中音乐 | J180: 99.85 | K180: 66.57 | L180: 26.63 | M180: 83.33 | N180: 50.00 | O180: 76.62
A181: 178 | B181: 徐丰英 | C181: 2023086309 | D181: 63 | E181: 09 | F181: 乌当中学 | G181: 初中 | H181: 音乐 | I181: 初中音乐 | J181: 98.87 | K181: 65.91 | L181: 26.37 | M181: 83.67 | N181: 50.20 | O181: 76.57
A182: 179 | B182: 陈筑 | C182: 2023086329 | D182: 63 | E182: 29 | F182: 乌当中学 | G182: 初中 | H182: 音乐 | I182: 初中音乐 | J182: 101.71 | K182: 67.81 | L182: 27.12 | M182: 82.37 | N182: 49.42 | O182: 76.54
A183: 180 | B183: 李登文 | C183: 2023086423 | D183: 64 | E183: 23 | F183: 乌当中学 | G183: 初中 | H183: 音乐 | I183: 初中音乐 | J183: 101.7 | K183: 67.80 | L183: 27.12 | M183: 缺考 | O183: 27.12
A184: 181 | B184: 杨梦玲 | C184: 2023083211 | D184: 32 | E184: 11 | F184: 乌当中学 | G184: 初中 | H184: 英语 | I184: 初中英语 | J184: 121.96 | K184: 81.31 | L184: 32.52 | M184: 88.33 | N184: =M184*0.6 -> 53.00 | O184: 85.52 | P184: 是 | Q184: 1
A185: 182 | B185: 杜林林 | C185: 2023083226 | D185: 32 | E185: 26 | F185: 乌当中学 | G185: 初中 | H185: 英语 | I185: 初中英语 | J185: 125.47 | K185: 83.65 | L185: 33.46 | M185: 83.33 | N185: 50.00 | O185: 83.46 | P185: 是 | Q185: 2
A186: 183 | B186: 尹娟 | C186: 2023083501 | D186: 35 | E186: 01 | F186: 乌当中学 | G186: 初中 | H186: 英语 | I186: 初中英语 | J186: 118.24 | K186: 78.83 | L186: 31.53 | M186: 83.67 | N186: 50.20 | O186: 81.73 | P186: 是 | Q186: 3
A187: 184 | B187: 张晓丽 | C187: 2023083518 | D187: 35 | E187: 18 | F187: 乌当中学 | G187: 初中 | H187: 英语 | I187: 初中英语 | J187: 113.9 | K187: 75.93 | L187: 30.37 | M187: 85.33 | N187: 51.20 | O187: 81.57 | P187: 是 | Q187: 4
A188: 185 | B188: 任娜 | C188: 2023083725 | D188: 37 | E188: 25 | F188: 乌当中学 | G188: 初中 | H188: 英语 | I188: 初中英语 | J188: 114.97 | K188: 76.65 | L188: 30.66 | M188: 83.33 | N188: 50.00 | O188: 80.66 | P188: 是 | Q188: 5
A189: 186 | B189: 姚兰琳 | C189: 2023083625 | D189: 36 | E189: 25 | F189: 乌当中学 | G189: 初中 | H189: 英语 | I189: 初中英语 | J189: 113.65 | K189: 75.77 | L189: 30.31 | M189: 82.00 | N189: 49.20 | O189: 79.51 | P189: 是 | Q189: 6
A190: 187 | B190: 曹贤梅 | C190: 2023083024 | D190: 30 | E190: 24 | F190: 乌当中学 | G190: 初中 | H190: 英语 | I190: 初中英语 | J190: 114.66 | K190: 76.44 | L190: 30.58 | M190: 81.33 | N190: 48.80 | O190: 79.37 | P190: 是 | Q190: 7
A191: 188 | B191: 谌艳业 | C191: 2023083202 | D191: 32 | E191: 02 | F191: 乌当中学 | G191: 初中 | H191: 英语 | I191: 初中英语 | J191: 112.9 | K191: 75.27 | L191: 30.11 | M191: 82.00 | N191: 49.20 | O191: 79.31 | P191: 是 | Q191: 8
A192: 189 | B192: 吴亚玲 | C192: 2023083805 | D192: 38 | E192: 05 | F192: 乌当中学 | G192: 初中 | H192: 英语 | I192: 初中英语 | J192: 115.05 | K192: 76.70 | L192: 30.68 | M192: 81.00 | N192: 48.60 | O192: 79.28 | P192: 是 | Q192: 9
A193: 190 | B193: 王雪梅 | C193: 2023083015 | D193: 30 | E193: 15 | F193: 乌当中学 | G193: 初中 | H193: 英语 | I193: 初中英语 | J193: 113.95 | K193: 75.97 | L193: 30.39 | M193: 80.67 | N193: 48.40 | O193: 78.79 | P193: 是 | Q193: 10
A194: 191 | B194: 杨丽 | C194: 2023083525 | D194: 35 | E194: 25 | F194: 乌当中学 | G194: 初中 | H194: 英语 | I194: 初中英语 | J194: 112.7 | K194: 75.13 | L194: 30.05 | M194: 80.67 | N194: 48.40 | O194: 78.46 | P194: 是 | Q194: 11
A195: 192 | B195: 罗旭 | C195: 2023083113 | D195: 31 | E195: 13 | F195: 乌当中学 | G195: 初中 | H195: 英语 | I195: 初中英语 | J195: 112.24 | K195: 74.83 | L195: 29.93 | M195: 80.33 | N195: 48.20 | O195: 78.13 | P195: 是 | Q195: 12
A196: 193 | B196: 杨倩君 | C196: 2023083116 | D196: 31 | E196: 16 | F196: 乌当中学 | G196: 初中 | H196: 英语 | I196: 初中英语 | J196: 118.31 | K196: =J196/1.5 -> 78.87 | L196: 31.55 | M196: 77.33 | N196: 46.40 | O196: =L196+N196 -> 77.95 | P196: 是 | Q196: 13
A197: 194 | B197: 翟长芬 | C197: 2023083213 | D197: 32 | E197: 13 | F197: 乌当中学 | G197: 初中 | H197: 英语 | I197: 初中英语 | J197: 112.52 | K197: 75.01 | L197: 30.01 | M197: 78.67 | N197: 47.20 | O197: 77.21
A198: 195 | B198: 郭兴艳 | C198: 2023083409 | D198: 34 | E198: 09 | F198: 乌当中学 | G198: 初中 | H198: 英语 | I198: 初中英语 | J198: 115.89 | K198: 77.26 | L198: =K198*0.4 -> 30.90 | M198: 76.00 | N198: 45.60 | O198: 76.50
A199: 196 | B199: 杨春妮 | C199: 2023083806 | D199: 38 | E199: 06 | F199: 乌当中学 | G199: 初中 | H199: 英语 | I199: 初中英语 | J199: 113.38 | K199: 75.59 | L199: 30.23 | M199: 76.33 | N199: 45.80 | O199: 76.03
A200: 197 | B200: 程丹 | C200: 2023083609 | D200: 36 | E200: 09 | F200: 乌当中学 | G200: 初中 | H200: 英语 | I200: 初中英语 | J200: 113.55 | K200: 75.70 | L200: 30.28 | M200: 75.67 | N200: 45.40 | O200: 75.68
... 274 more rows
